[Event "Titled Tuesday Blitz May 2 Late 2023"]
[White "Holt, Conrad"]
[Black "Baltic, Fatih"]
[WhiteFideId "2034387"]
[BlackFideId "12979090"]
[WhiteElo "2592"]
[BlackElo "2200"]
[Result "1-0"]
[Round "01"]
[TimeControl "180+2"]
[Date "2023.05.02"]
[WhiteClock "0:00:00"]
[BlackClock "0:00:00"]

1. d4 {[%clk 0:00:01]}  Nf6 {[%clk 0:00:01]} 2. c4 {[%clk 0:00:01]}  Nc6 {[%clk 0:00:01]} 3. Nf3 {[%clk 0:00:01]}  e6 {[%clk 0:00:01]} 4. a3 {[%clk 0:00:01]}  g6 {[%clk 0:00:01]} 5. Nc3 {[%clk 0:00:01]}  Bg7 {[%clk 0:00:01]} 6. e4 {[%clk 0:00:01]}  d6 {[%clk 0:00:01]} 7. Be2 {[%clk 0:00:01]}  O-O {[%clk 0:00:01]} 8. O-O {[%clk 0:00:01]}  Nd7 {[%clk 0:00:01]} 9. Bg5 {[%clk 0:00:01]}  Bf6 {[%clk 0:00:01]} 10. Bh6 {[%clk 0:00:01]}  Bg7 {[%clk 0:00:01]} 11. Bxg7 {[%clk 0:00:01]}  Kxg7 {[%clk 0:00:01]} 12. Qd2 {[%clk 0:00:01]}  h6 {[%clk 0:00:01]} 13. d5 {[%clk 0:00:01]}  Nce5 {[%clk 0:00:01]} 14. Nxe5 {[%clk 0:00:01]}  Nxe5 {[%clk 0:00:01]} 15. f4 {[%clk 0:00:01]}  Nd7 {[%clk 0:00:01]} 16. dxe6 {[%clk 0:00:01]}  fxe6 {[%clk 0:00:01]} 17. e5 {[%clk 0:00:01]}  dxe5 {[%clk 0:00:01]} 18. fxe5 {[%clk 0:00:01]}  Nxe5 {[%clk 0:00:01]} 19. Qe3 {[%clk 0:00:01]}  Qg5 {[%clk 0:00:01]} 20. Qxg5 {[%clk 0:00:00]}  hxg5 {[%clk 0:00:01]} 21. Ne4 {[%clk 0:00:00]}  Bd7 {[%clk 0:00:01]} 22. Nxg5 {[%clk 0:00:00]}  Rxf1+ {[%clk 0:00:01]} 23. Rxf1 {[%clk 0:00:00]}  Rf8 {[%clk 0:00:01]} 24. Re1 {[%clk 0:00:00]}  Rf4 {[%clk 0:00:01]} 25. Bf1 {[%clk 0:00:00]}  Nxc4 {[%clk 0:00:01]} 26. g3 {[%clk 0:00:00]}  Rd4 {[%clk 0:00:01]} 27. Nf3 {[%clk 0:00:00]}  Rg4 {[%clk 0:00:01]} 28. Bh3 {[%clk 0:00:00]}  e5 {[%clk 0:00:00]} 29. Bxg4 {[%clk 0:00:00]}  Bxg4 {[%clk 0:00:00]} 30. Nxe5 {[%clk 0:00:00]}  Nxe5 {[%clk 0:00:00]} 31. Rxe5 {[%clk 0:00:00]}  Kf6 {[%clk 0:00:00]} 32. Rc5 {[%clk 0:00:00]}  c6 {[%clk 0:00:00]} 33. Kf2 {[%clk 0:00:00]}  Be6 {[%clk 0:00:00]} 34. h4 {[%clk 0:00:00]}  Bd5 {[%clk 0:00:00]} 35. g4 {[%clk 0:00:00]}  Ke5 {[%clk 0:00:00]} 36. Kg3 {[%clk 0:00:00]}  b6 {[%clk 0:00:00]} 37. Rc3 {[%clk 0:00:00]}  b5 {[%clk 0:00:00]} 38. Re3+ {[%clk 0:00:00]}  Kf6 {[%clk 0:00:00]} 39. Kf4 {[%clk 0:00:00]}  a5 {[%clk 0:00:00]} 40. b4 {[%clk 0:00:00]}  axb4 {[%clk 0:00:00]} 41. axb4 {[%clk 0:00:00]}  Bc4 {[%clk 0:00:00]} 42. g5+ {[%clk 0:00:00]}  Kf7 {[%clk 0:00:00]} 43. Ke5 {[%clk 0:00:00]}  Bd5 {[%clk 0:00:00]} 44. Re1 {[%clk 0:00:00]}  Ke7 {[%clk 0:00:00]} 45. Ra1 {[%clk 0:00:00]}  Kf7 {[%clk 0:00:00]} 46. Ra7+ {[%clk 0:00:00]}  Kg8 {[%clk 0:00:00]} 47. Kf6 {[%clk 0:00:00]}  Be4 {[%clk 0:00:00]} 48. Rg7+ {[%clk 0:00:00]}  Kh8 {[%clk 0:00:00]} 49. Rc7 {[%clk 0:00:00]}  Bd5 {[%clk 0:00:00]} 50. Kxg6 {[%clk 0:00:00]}  Be4+ {[%clk 0:00:00]} 51. Kf6 {[%clk 0:00:00]}  Bd5 {[%clk 0:00:00]} 52. g6 {[%clk 0:00:00]}  c5 {[%clk 0:00:00]} 53. Rc8+ {[%clk 0:00:00]}  Bg8 {[%clk 0:00:00]} 54. g7+ {[%clk 0:00:00]}  Kh7 {[%clk 0:00:00]} 55. Rxc5 {[%clk 0:00:00]}  Kh6 {[%clk 0:00:00]} 56. Rc8 {[%clk 0:00:00]}  Kh7 {[%clk 0:00:00]} 57. Rb8 {[%clk 0:00:00]}  Bc4 {[%clk 0:00:00]} 58. Rh8# {[%clk 0:00:00]} 1-0


[Site "https://www.chess.com"]

[Event "Titled Tuesday Blitz May 2 Late 2023"]
[White "Miszler, Levente"]
[Black "Flores, Diego"]
[WhiteFideId "763276"]
[BlackFideId "108049"]
[WhiteElo "2176"]
[BlackElo "2613"]
[Result "0-1"]
[Round "01"]
[TimeControl "180+2"]
[Date "2023.05.02"]
[WhiteClock "0:00:00"]
[BlackClock "0:00:00"]

1. d4 {[%clk 0:00:01]}  Nf6 {[%clk 0:00:01]} 2. Nc3 {[%clk 0:00:01]}  d5 {[%clk 0:00:01]} 3. Bf4 {[%clk 0:00:01]}  c5 {[%clk 0:00:01]} 4. e3 {[%clk 0:00:01]}  cxd4 {[%clk 0:00:01]} 5. exd4 {[%clk 0:00:01]}  a6 {[%clk 0:00:01]} 6. Be2 {[%clk 0:00:01]}  Nc6 {[%clk 0:00:01]} 7. Nf3 {[%clk 0:00:01]}  Bf5 {[%clk 0:00:01]} 8. h3 {[%clk 0:00:01]}  e6 {[%clk 0:00:01]} 9. g4 {[%clk 0:00:01]}  Bg6 {[%clk 0:00:01]} 10. h4 {[%clk 0:00:01]}  h5 {[%clk 0:00:01]} 11. Bg5 {[%clk 0:00:01]}  hxg4 {[%clk 0:00:01]} 12. Ne5 {[%clk 0:00:01]}  Bf5 {[%clk 0:00:01]} 13. Bxg4 {[%clk 0:00:00]}  Nxe5 {[%clk 0:00:00]} 14. dxe5 {[%clk 0:00:00]}  Bxg4 {[%clk 0:00:00]} 15. exf6 {[%clk 0:00:00]}  Bxd1 {[%clk 0:00:00]} 16. fxg7 {[%clk 0:00:00]}  Bxg7 {[%clk 0:00:00]} 17. Bxd8 {[%clk 0:00:00]}  Bxc2 {[%clk 0:00:00]} 18. Rc1 {[%clk 0:00:00]}  Bg6 {[%clk 0:00:00]} 19. Ba5 {[%clk 0:00:00]}  Rc8 {[%clk 0:00:00]} 20. Ke2 {[%clk 0:00:00]}  Rc5 {[%clk 0:00:00]} 21. Bb4 {[%clk 0:00:00]}  Rc4 {[%clk 0:00:00]} 22. Ba5 {[%clk 0:00:00]}  Kd7 {[%clk 0:00:00]} 23. Rhd1 {[%clk 0:00:00]}  Rhxh4 {[%clk 0:00:00]} 24. Nxd5 {[%clk 0:00:00]}  exd5 {[%clk 0:00:00]} 25. Rxd5+ {[%clk 0:00:00]}  Ke6 {[%clk 0:00:00]} 26. Rcd1 {[%clk 0:00:00]}  Rhd4 {[%clk 0:00:00]} 0-1


[Site "https://www.chess.com"]

[Event "Titled Tuesday Blitz May 2 Late 2023"]
[White "Sanhueza, Cristian"]
[Black "Goltsev, Dmitry"]
[WhiteFideId "116815"]
[BlackFideId "24176710"]
[WhiteElo "2219"]
[BlackElo "2336"]
[Result "1-0"]
[Round "01"]
[TimeControl "180+2"]
[Date "2023.05.02"]
[WhiteClock "0:00:00"]
[BlackClock "0:00:00"]

1. e4 {[%clk 0:00:01]}  e6 {[%clk 0:00:01]} 2. d4 {[%clk 0:00:01]}  d5 {[%clk 0:00:01]} 3. c3 {[%clk 0:00:01]}  dxe4 {[%clk 0:00:01]} 4. Nd2 {[%clk 0:00:01]}  Nf6 {[%clk 0:00:01]} 5. Qc2 {[%clk 0:00:01]}  Qd5 {[%clk 0:00:01]} 6. Bc4 {[%clk 0:00:01]}  Qc6 {[%clk 0:00:01]} 7. a4 {[%clk 0:00:01]}  a6 {[%clk 0:00:01]} 8. Bb5 {[%clk 0:00:01]}  axb5 {[%clk 0:00:01]} 9. axb5 {[%clk 0:00:01]}  Rxa1 {[%clk 0:00:01]} 10. bxc6 {[%clk 0:00:01]}  Nxc6 {[%clk 0:00:01]} 11. Ne2 {[%clk 0:00:01]}  e3 {[%clk 0:00:01]} 12. fxe3 {[%clk 0:00:01]}  Ng4 {[%clk 0:00:01]} 13. Nb1 {[%clk 0:00:01]}  Bd6 {[%clk 0:00:01]} 14. h3 {[%clk 0:00:01]}  Nf6 {[%clk 0:00:01]} 15. e4 {[%clk 0:00:01]}  e5 {[%clk 0:00:01]} 16. d5 {[%clk 0:00:01]}  Na5 {[%clk 0:00:00]} 17. O-O {[%clk 0:00:00]}  h5 {[%clk 0:00:00]} 18. b4 {[%clk 0:00:00]}  Nc4 {[%clk 0:00:00]} 19. Qd3 {[%clk 0:00:00]}  b5 {[%clk 0:00:00]} 20. Nd2 {[%clk 0:00:00]}  Nb6 {[%clk 0:00:00]} 21. Bb2 {[%clk 0:00:00]}  Ra2 {[%clk 0:00:00]} 22. Qb1 {[%clk 0:00:00]}  Ra8 {[%clk 0:00:00]} 23. Qd3 {[%clk 0:00:00]}  Ke7 {[%clk 0:00:00]} 24. Ng3 {[%clk 0:00:00]}  g6 {[%clk 0:00:00]} 25. Bc1 {[%clk 0:00:00]}  Ne8 {[%clk 0:00:00]} 26. Nb3 {[%clk 0:00:00]}  f6 {[%clk 0:00:00]} 27. Be3 {[%clk 0:00:00]}  Nc4 {[%clk 0:00:00]} 28. Bc5 {[%clk 0:00:00]}  Ra2 {[%clk 0:00:00]} 29. Rf2 {[%clk 0:00:00]}  Ra3 {[%clk 0:00:00]} 30. Nd2 {[%clk 0:00:00]}  Bd7 {[%clk 0:00:00]} 31. Nxc4 {[%clk 0:00:00]}  bxc4 {[%clk 0:00:00]} 32. Qxc4 {[%clk 0:00:00]}  h4 {[%clk 0:00:00]} 33. Nf1 {[%clk 0:00:00]}  f5 {[%clk 0:00:00]} 34. exf5 {[%clk 0:00:00]}  gxf5 {[%clk 0:00:00]} 35. Ne3 {[%clk 0:00:00]}  f4 {[%clk 0:00:00]} 36. Nc2 {[%clk 0:00:00]}  Ra8 {[%clk 0:00:00]} 37. b5 {[%clk 0:00:00]}  Nf6 {[%clk 0:00:00]} 38. Nb4 {[%clk 0:00:00]}  e4 {[%clk 0:00:00]} 39. Nc6+ {[%clk 0:00:00]}  Bxc6 {[%clk 0:00:00]} 40. dxc6 {[%clk 0:00:00]}  e3 {[%clk 0:00:00]} 41. Rxf4 {[%clk 0:00:00]}  Ra1+ {[%clk 0:00:00]} 42. Kh2 {[%clk 0:00:00]}  Rg8 {[%clk 0:00:00]} 43. Bxd6+ {[%clk 0:00:00]}  cxd6 {[%clk 0:00:00]} 44. Rxf6 {[%clk 0:00:00]}  Kxf6 {[%clk 0:00:00]} 45. Qxg8 {[%clk 0:00:00]}  e2 {[%clk 0:00:00]} 46. Qf8+ {[%clk 0:00:00]}  Kg5 {[%clk 0:00:00]} 47. Qe7+ {[%clk 0:00:00]}  Kf5 {[%clk 0:00:00]} 48. Qxe2 {[%clk 0:00:00]}  d5 {[%clk 0:00:00]} 49. Qf3+ {[%clk 0:00:00]}  Kg5 {[%clk 0:00:00]} 50. c7 {[%clk 0:00:00]}  d4 {[%clk 0:00:00]} 51. cxd4 {[%clk 0:00:00]}  Ra2 {[%clk 0:00:00]} 52. c8=Q {[%clk 0:00:00]}  Kh6 {[%clk 0:00:00]} 53. Qh8+ {[%clk 0:00:00]}  Kg6 {[%clk 0:00:00]} 54. Qfh5# {[%clk 0:00:00]} 1-0


[Site "https://www.chess.com"]

[Event "Titled Tuesday Blitz May 2 Late 2023"]
[White "Kobo, Ori"]
[Black "Berg, Olaf"]
[WhiteFideId "2812320"]
[BlackFideId "7200420"]
[WhiteElo "2447"]
[BlackElo "2269"]
[Result "1-0"]
[Round "01"]
[TimeControl "180+2"]
[Date "2023.05.02"]
[WhiteClock "0:00:00"]
[BlackClock "0:00:00"]

1. e4 {[%clk 0:00:01]}  c5 {[%clk 0:00:01]} 2. Nf3 {[%clk 0:00:01]}  d6 {[%clk 0:00:01]} 3. d4 {[%clk 0:00:01]}  cxd4 {[%clk 0:00:01]} 4. Qxd4 {[%clk 0:00:01]}  Nc6 {[%clk 0:00:01]} 5. Bb5 {[%clk 0:00:01]}  Bd7 {[%clk 0:00:01]} 6. Qd3 {[%clk 0:00:01]}  e5 {[%clk 0:00:01]} 7. O-O {[%clk 0:00:01]}  Nf6 {[%clk 0:00:01]} 8. Nc3 {[%clk 0:00:01]}  h6 {[%clk 0:00:01]} 9. Be3 {[%clk 0:00:01]}  Be7 {[%clk 0:00:01]} 10. h3 {[%clk 0:00:01]}  O-O {[%clk 0:00:01]} 11. Rfd1 {[%clk 0:00:01]}  a6 {[%clk 0:00:01]} 12. Bc4 {[%clk 0:00:01]}  Nb4 {[%clk 0:00:01]} 13. Qe2 {[%clk 0:00:01]}  Rc8 {[%clk 0:00:01]} 14. Bb3 {[%clk 0:00:01]}  Qa5 {[%clk 0:00:01]} 15. a3 {[%clk 0:00:01]}  Nc6 {[%clk 0:00:01]} 16. Nh4 {[%clk 0:00:01]}  Nxe4 {[%clk 0:00:00]} 17. Nxe4 {[%clk 0:00:01]}  Bxh4 {[%clk 0:00:00]} 18. Nxd6 {[%clk 0:00:01]}  Rb8 {[%clk 0:00:00]} 19. Nxf7 {[%clk 0:00:01]}  Rxf7 {[%clk 0:00:00]} 20. Rxd7 {[%clk 0:00:01]}  Be7 {[%clk 0:00:00]} 21. Qh5 {[%clk 0:00:01]}  Rf8 {[%clk 0:00:00]} 22. Qg6 {[%clk 0:00:00]}  e4 {[%clk 0:00:00]} 23. Bxh6 {[%clk 0:00:00]}  Qe5 {[%clk 0:00:00]} 24. Rad1 {[%clk 0:00:00]}  Qf6 {[%clk 0:00:00]} 25. Qxf6 {[%clk 0:00:00]}  Bxf6 {[%clk 0:00:00]} 26. Rxf7 {[%clk 0:00:00]}  Rxf7 {[%clk 0:00:00]} 27. Bc1 {[%clk 0:00:00]}  Kf8 {[%clk 0:00:00]} 28. Bxf7 {[%clk 0:00:00]}  Kxf7 {[%clk 0:00:00]} 29. Rd7+ {[%clk 0:00:00]}  Kg6 {[%clk 0:00:00]} 30. Rxb7 {[%clk 0:00:00]}  Nd4 {[%clk 0:00:00]} 31. Kf1 {[%clk 0:00:00]}  Nxc2 {[%clk 0:00:00]} 32. Rb6 {[%clk 0:00:00]}  a5 {[%clk 0:00:00]} 33. Bd2 {[%clk 0:00:00]}  a4 {[%clk 0:00:00]} 34. Bc3 {[%clk 0:00:00]}  e3 {[%clk 0:00:00]} 35. Bxf6 {[%clk 0:00:00]}  gxf6 {[%clk 0:00:00]} 36. fxe3 {[%clk 0:00:00]}  Nxe3+ {[%clk 0:00:00]} 37. Kg1 {[%clk 0:00:00]}  Nc4 {[%clk 0:00:00]} 38. Rb4 {[%clk 0:00:00]}  Ne5 {[%clk 0:00:00]} 39. Rxa4 {[%clk 0:00:00]}  Nd3 {[%clk 0:00:00]} 40. b4 {[%clk 0:00:00]}  Nb2 {[%clk 0:00:00]} 41. Ra5 {[%clk 0:00:00]}  Nc4 {[%clk 0:00:00]} 42. Rc5 {[%clk 0:00:00]}  Nb6 {[%clk 0:00:00]} 43. b5 {[%clk 0:00:00]}  Kf7 {[%clk 0:00:00]} 44. Rc6 {[%clk 0:00:00]}  Nd5 {[%clk 0:00:00]} 45. b6 {[%clk 0:00:00]}  Ke7 {[%clk 0:00:00]} 46. b7 {[%clk 0:00:00]} 1-0


[Site "https://www.chess.com"]

[Event "Titled Tuesday Blitz May 2 Late 2023"]
[White "Golubev, Mikhail"]
[Black "Santos Ruiz, Miguel"]
[WhiteFideId "14100983"]
[BlackFideId "22291482"]
[WhiteElo "2374"]
[BlackElo "2504"]
[Result "0-1"]
[Round "01"]
[TimeControl "180+2"]
[Date "2023.05.02"]
[WhiteClock "0:00:00"]
[BlackClock "0:00:00"]

1. e4 {[%clk 0:00:01]}  c5 {[%clk 0:00:01]} 2. Nf3 {[%clk 0:00:01]}  d6 {[%clk 0:00:01]} 3. d4 {[%clk 0:00:01]}  cxd4 {[%clk 0:00:01]} 4. Nxd4 {[%clk 0:00:01]}  Nf6 {[%clk 0:00:01]} 5. Nc3 {[%clk 0:00:01]}  a6 {[%clk 0:00:01]} 6. Bc4 {[%clk 0:00:01]}  e6 {[%clk 0:00:01]} 7. O-O {[%clk 0:00:01]}  Be7 {[%clk 0:00:01]} 8. Bb3 {[%clk 0:00:01]}  b5 {[%clk 0:00:01]} 9. Qf3 {[%clk 0:00:01]}  Qc7 {[%clk 0:00:01]} 10. Qg3 {[%clk 0:00:01]}  Rg8 {[%clk 0:00:01]} 11. Re1 {[%clk 0:00:01]}  Nbd7 {[%clk 0:00:01]} 12. Bxe6 {[%clk 0:00:01]}  fxe6 {[%clk 0:00:01]} 13. Nxe6 {[%clk 0:00:01]}  Qc4 {[%clk 0:00:01]} 14. Nd5 {[%clk 0:00:00]}  Nxd5 {[%clk 0:00:00]} 15. exd5 {[%clk 0:00:00]}  Ne5 {[%clk 0:00:00]} 16. b3 {[%clk 0:00:00]}  Qxc2 {[%clk 0:00:00]} 17. Bf4 {[%clk 0:00:00]}  Bxe6 {[%clk 0:00:00]} 18. Bxe5 {[%clk 0:00:00]}  dxe5 {[%clk 0:00:00]} 19. dxe6 {[%clk 0:00:00]}  Rc8 {[%clk 0:00:00]} 20. Qxe5 {[%clk 0:00:00]}  Rf8 {[%clk 0:00:00]} 0-1


[Site "https://www.chess.com"]

[Event "Titled Tuesday Blitz May 2 Late 2023"]
[White "Kubatko, Ivan"]
[Black "Klimkowski, Jan"]
[WhiteFideId "24111473"]
[BlackFideId "21856222"]
[WhiteElo "2285"]
[BlackElo "2331"]
[Result "0-1"]
[Round "01"]
[TimeControl "180+2"]
[Date "2023.05.02"]
[WhiteClock "0:00:00"]
[BlackClock "0:00:00"]

1. e4 {[%clk 0:00:01]}  c5 {[%clk 0:00:01]} 2. c3 {[%clk 0:00:01]}  g6 {[%clk 0:00:01]} 3. d4 {[%clk 0:00:01]}  Bg7 {[%clk 0:00:01]} 4. dxc5 {[%clk 0:00:01]}  Qc7 {[%clk 0:00:01]} 5. Be3 {[%clk 0:00:01]}  Nf6 {[%clk 0:00:01]} 6. f3 {[%clk 0:00:01]}  O-O {[%clk 0:00:01]} 7. Na3 {[%clk 0:00:01]}  Na6 {[%clk 0:00:01]} 8. Nb5 {[%clk 0:00:01]}  Qb8 {[%clk 0:00:01]} 9. Bc4 {[%clk 0:00:01]}  Nh5 {[%clk 0:00:01]} 10. Ne2 {[%clk 0:00:01]}  Be5 {[%clk 0:00:01]} 11. Qd2 {[%clk 0:00:01]}  b6 {[%clk 0:00:01]} 12. g4 {[%clk 0:00:00]}  Nf6 {[%clk 0:00:01]} 13. cxb6 {[%clk 0:00:00]}  axb6 {[%clk 0:00:01]} 14. Rd1 {[%clk 0:00:00]}  Bb7 {[%clk 0:00:01]} 15. Bf4 {[%clk 0:00:00]}  Bxf4 {[%clk 0:00:01]} 16. Qxf4 {[%clk 0:00:00]}  Qc8 {[%clk 0:00:01]} 17. h4 {[%clk 0:00:00]}  Qxc4 {[%clk 0:00:01]} 18. Na3 {[%clk 0:00:00]}  Qc7 {[%clk 0:00:01]} 19. Qh6 {[%clk 0:00:00]}  d5 {[%clk 0:00:00]} 20. h5 {[%clk 0:00:00]}  dxe4 {[%clk 0:00:00]} 21. hxg6 {[%clk 0:00:00]}  fxg6 {[%clk 0:00:00]} 22. Nb5 {[%clk 0:00:00]}  Qe5 {[%clk 0:00:00]} 23. f4 {[%clk 0:00:00]}  Qxb5 {[%clk 0:00:00]} 24. g5 {[%clk 0:00:00]}  Rf7 {[%clk 0:00:00]} 25. Nd4 {[%clk 0:00:00]}  Qxb2 {[%clk 0:00:00]} 26. Ne6 {[%clk 0:00:00]}  Qxc3+ {[%clk 0:00:00]} 27. Rd2 {[%clk 0:00:00]}  e3 {[%clk 0:00:00]} 0-1


[Site "https://www.chess.com"]

[Event "Titled Tuesday Blitz May 2 Late 2023"]
[White "Samsonkin, Artiom"]
[Black "Rottenwohrer Suarez, Juan"]
[WhiteFideId "13503111"]
[BlackFideId "32068182"]
[WhiteElo "2524"]
[BlackElo "2174"]
[Result "1-0"]
[Round "01"]
[TimeControl "180+2"]
[Date "2023.05.02"]
[WhiteClock "0:00:00"]
[BlackClock "0:00:00"]

1. e4 {[%clk 0:00:01]}  c5 {[%clk 0:00:01]} 2. Nf3 {[%clk 0:00:01]}  g6 {[%clk 0:00:01]} 3. c3 {[%clk 0:00:01]}  d5 {[%clk 0:00:01]} 4. exd5 {[%clk 0:00:01]}  Qxd5 {[%clk 0:00:01]} 5. d4 {[%clk 0:00:01]}  Bg7 {[%clk 0:00:01]} 6. Na3 {[%clk 0:00:01]}  cxd4 {[%clk 0:00:01]} 7. Bc4 {[%clk 0:00:01]}  Qd8 {[%clk 0:00:01]} 8. O-O {[%clk 0:00:01]}  Nf6 {[%clk 0:00:01]} 9. Nb5 {[%clk 0:00:01]}  a6 {[%clk 0:00:01]} 10. Nbxd4 {[%clk 0:00:01]}  O-O {[%clk 0:00:01]} 11. a4 {[%clk 0:00:01]}  Qc7 {[%clk 0:00:01]} 12. Qe2 {[%clk 0:00:01]}  Bg4 {[%clk 0:00:01]} 13. h3 {[%clk 0:00:01]}  Bxf3 {[%clk 0:00:01]} 14. Nxf3 {[%clk 0:00:01]}  Nc6 {[%clk 0:00:01]} 15. Re1 {[%clk 0:00:01]}  e6 {[%clk 0:00:01]} 16. Ba2 {[%clk 0:00:01]}  h6 {[%clk 0:00:00]} 17. Be3 {[%clk 0:00:01]}  Rfd8 {[%clk 0:00:00]} 18. Nd4 {[%clk 0:00:00]}  Nxd4 {[%clk 0:00:00]} 19. Bxd4 {[%clk 0:00:00]}  Nd5 {[%clk 0:00:00]} 20. Bxg7 {[%clk 0:00:00]}  Kxg7 {[%clk 0:00:00]} 21. Qf3 {[%clk 0:00:00]}  b5 {[%clk 0:00:00]} 22. axb5 {[%clk 0:00:00]}  axb5 {[%clk 0:00:00]} 23. Bb3 {[%clk 0:00:00]}  Rxa1 {[%clk 0:00:00]} 24. Rxa1 {[%clk 0:00:00]}  Nf6 {[%clk 0:00:00]} 25. Qe3 {[%clk 0:00:00]}  Rd7 {[%clk 0:00:00]} 26. Rd1 {[%clk 0:00:00]}  Rxd1+ {[%clk 0:00:00]} 27. Bxd1 {[%clk 0:00:00]}  Nd5 {[%clk 0:00:00]} 28. Qd4+ {[%clk 0:00:00]}  Kg8 {[%clk 0:00:00]} 29. Be2 {[%clk 0:00:00]}  Qa5 {[%clk 0:00:00]} 30. Kh2 {[%clk 0:00:00]}  Nb6 {[%clk 0:00:00]} 31. Qd8+ {[%clk 0:00:00]}  Kg7 {[%clk 0:00:00]} 32. b4 {[%clk 0:00:00]}  Qa2 {[%clk 0:00:00]} 33. Qd4+ {[%clk 0:00:00]}  Kg8 {[%clk 0:00:00]} 34. Bf3 {[%clk 0:00:00]}  Nd5 {[%clk 0:00:00]} 35. Bxd5 {[%clk 0:00:00]}  Qxd5 {[%clk 0:00:00]} 36. Qxd5 {[%clk 0:00:00]}  exd5 {[%clk 0:00:00]} 37. Kg3 {[%clk 0:00:00]}  f6 {[%clk 0:00:00]} 38. Kf4 {[%clk 0:00:00]}  Kf7 {[%clk 0:00:00]} 39. Ke3 {[%clk 0:00:00]}  Ke6 {[%clk 0:00:00]} 40. Kd4 {[%clk 0:00:00]}  Kd6 {[%clk 0:00:00]} 41. f4 {[%clk 0:00:00]}  f5 {[%clk 0:00:00]} 42. g3 {[%clk 0:00:00]}  h5 {[%clk 0:00:00]} 43. h4 {[%clk 0:00:00]} 1-0


[Site "https://www.chess.com"]

[Event "Titled Tuesday Blitz May 2 Late 2023"]
[White "Gasparyan, David"]
[Black "Mgeladze, Tamaz"]
[WhiteFideId "13311980"]
[BlackFideId "13601202"]
[WhiteElo "2142"]
[BlackElo "2288"]
[Result "0-1"]
[Round "01"]
[TimeControl "180+2"]
[Date "2023.05.02"]
[WhiteClock "0:00:00"]
[BlackClock "0:00:00"]

1. e4 {[%clk 0:00:01]}  c5 {[%clk 0:00:01]} 2. Nf3 {[%clk 0:00:01]}  g6 {[%clk 0:00:01]} 3. d4 {[%clk 0:00:01]}  cxd4 {[%clk 0:00:01]} 4. Nxd4 {[%clk 0:00:01]}  Bg7 {[%clk 0:00:01]} 5. Be3 {[%clk 0:00:01]}  Nc6 {[%clk 0:00:01]} 6. Nc3 {[%clk 0:00:01]}  Nf6 {[%clk 0:00:01]} 7. Bc4 {[%clk 0:00:01]}  O-O {[%clk 0:00:01]} 8. Bb3 {[%clk 0:00:01]}  a5 {[%clk 0:00:01]} 9. a4 {[%clk 0:00:01]}  Ng4 {[%clk 0:00:01]} 10. Qxg4 {[%clk 0:00:01]}  Nxd4 {[%clk 0:00:01]} 11. Bxd4 {[%clk 0:00:01]}  Bxd4 {[%clk 0:00:01]} 12. Rd1 {[%clk 0:00:01]}  Bxc3+ {[%clk 0:00:01]} 13. bxc3 {[%clk 0:00:01]}  d6 {[%clk 0:00:01]} 14. Qe2 {[%clk 0:00:01]}  Qc7 {[%clk 0:00:01]} 15. Rd3 {[%clk 0:00:01]}  Be6 {[%clk 0:00:01]} 16. O-O {[%clk 0:00:01]}  Qc5 {[%clk 0:00:01]} 17. Qd2 {[%clk 0:00:01]}  Rac8 {[%clk 0:00:01]} 18. Rd1 {[%clk 0:00:01]}  Qe5 {[%clk 0:00:01]} 19. Rd4 {[%clk 0:00:01]}  Rc5 {[%clk 0:00:01]} 20. f4 {[%clk 0:00:01]}  Qg7 {[%clk 0:00:01]} 21. Qe3 {[%clk 0:00:00]}  Rfc8 {[%clk 0:00:01]} 22. R1d3 {[%clk 0:00:00]}  Bc4 {[%clk 0:00:01]} 23. Bxc4 {[%clk 0:00:00]}  Rxc4 {[%clk 0:00:01]} 24. e5 {[%clk 0:00:00]}  Rxd4 {[%clk 0:00:00]} 25. Rxd4 {[%clk 0:00:00]}  dxe5 {[%clk 0:00:00]} 26. fxe5 {[%clk 0:00:00]}  h6 {[%clk 0:00:00]} 27. Rd7 {[%clk 0:00:00]}  Qf8 {[%clk 0:00:00]} 28. e6 {[%clk 0:00:00]}  f5 {[%clk 0:00:00]} 29. Rxb7 {[%clk 0:00:00]}  Qf6 {[%clk 0:00:00]} 30. Qd4 {[%clk 0:00:00]}  Qxe6 {[%clk 0:00:00]} 31. h3 {[%clk 0:00:00]}  Kf7 {[%clk 0:00:00]} 32. Rb6 {[%clk 0:00:00]}  Rc6 {[%clk 0:00:00]} 33. Rxc6 {[%clk 0:00:00]}  Qxc6 {[%clk 0:00:00]} 34. Qe5 {[%clk 0:00:00]}  Qxa4 {[%clk 0:00:00]} 35. Qd5+ {[%clk 0:00:00]}  Ke8 {[%clk 0:00:00]} 36. Qg8+ {[%clk 0:00:00]}  Kd7 {[%clk 0:00:00]} 37. Qxg6 {[%clk 0:00:00]}  Qb5 {[%clk 0:00:00]} 38. Qxh6 {[%clk 0:00:00]}  a4 {[%clk 0:00:00]} 39. Qd2+ {[%clk 0:00:00]}  Kc6 {[%clk 0:00:00]} 40. Qe3 {[%clk 0:00:00]}  Qc5 {[%clk 0:00:00]} 41. Kf2 {[%clk 0:00:00]}  a3 {[%clk 0:00:00]} 42. Qxc5+ {[%clk 0:00:00]}  Kxc5 {[%clk 0:00:00]} 43. h4 {[%clk 0:00:00]}  a2 {[%clk 0:00:00]} 44. h5 {[%clk 0:00:00]}  a1=Q {[%clk 0:00:00]} 45. Kg3 {[%clk 0:00:00]}  Qxc3+ {[%clk 0:00:00]} 46. Kh4 {[%clk 0:00:00]}  Qxc2 {[%clk 0:00:00]} 47. Kg5 {[%clk 0:00:00]}  Qe4 {[%clk 0:00:00]} 48. Kh6 {[%clk 0:00:00]}  Qg4 {[%clk 0:00:00]} 49. g3 {[%clk 0:00:00]}  Qxg3 {[%clk 0:00:00]} 50. Kh7 {[%clk 0:00:00]}  Qg5 {[%clk 0:00:00]} 51. h6 {[%clk 0:00:00]}  f4 {[%clk 0:00:00]} 52. Kh8 {[%clk 0:00:00]}  Qxh6+ {[%clk 0:00:00]} 53. Kg8 {[%clk 0:00:00]}  Qf6 {[%clk 0:00:00]} 54. Kh7 {[%clk 0:00:00]}  f3 {[%clk 0:00:00]} 55. Kg8 {[%clk 0:00:00]}  f2 {[%clk 0:00:00]} 56. Kh7 {[%clk 0:00:00]}  f1=Q {[%clk 0:00:00]} 57. Kg8 {[%clk 0:00:00]}  Qg2+ {[%clk 0:00:00]} 58. Kh7 {[%clk 0:00:00]}  Qh4# {[%clk 0:00:00]} 0-1


[Site "https://www.chess.com"]